[Event "POR-ch Amateur 2018"]
[Site "Braga"]
[Date "2018.09.09"]
[Round "3"]
[White "Demyanchuk, Sergey"]
[Black "Andrade, Ricardo Sarmento"]
[Result "1-0"]
[ECO "B32"]
[WhiteElo "1818"]
[BlackElo "1744"]
[PlyCount "85"]
[EventDate "2018.09.02"]
[EventType "tourn"]
[EventCountry "POR"]
[TimeControl "40/5400+30:1800+30"]
[WhiteClock "0:49:31"]
[BlackClock "0:55:42"]

1. e4 {[%emt 0:00:00]} c5 {[%emt 0:00:00]} 2. Nf3 {[%emt 0:00:00]} Nc6 {[%emt 0:00:00]} 3. d4 {[%emt 0:00:12]} cxd4 {[%emt 0:00:00]} 4. Nxd4 {[%emt 0:00:07]} e5 {[%emt 0:00:00]} 5. Nxc6 {[%emt 0:00:51]} bxc6 {[%emt 0:00:10]} 6. Bc4 {[%emt 0:00:38]} Nf6 {[%emt 0:00:15]} 7. O-O {[%emt 0:00:57]} Be7 {[%emt 0:05:04]} 8. Nc3 {[%emt 0:00:37]} O-O {[%emt 0:00:08]} 9. b3 {[%emt 0:01:14]} Bb7 {[%emt 0:01:40]} 10. Bb2 {[%emt 0:00:40]} d5 {[%emt 0:01:15]} 11. Bd3 {[%emt 0:01:16]} Qc7 {[%emt 0:04:04]} 12. Qf3 {[%emt 0:06:08]} Rad8 {[%emt 0:02:31]} 13. Rad1 {[%emt 0:03:01]} g6 {[%emt 0:01:30]} 14. Bc1 {[%emt 0:01:52]} dxe4 {[%emt 0:01:19]} 15. Nxe4 {[%emt 0:00:12]} Nxe4 {[%emt 0:00:11]} 16. Qxe4 {[%emt 0:00:34]} c5 {[%emt 0:02:17]} 17. Qe3 {[%emt 0:01:57]} Qc6 {[%emt 0:01:38]} 18. Qg3 {[%emt 0:04:34]} Bd6 {[%emt 0:01:27]} 19. Bc4 {[%emt 0:04:12]} Ba6 {[%emt 0:04:26]} 20. Bxa6 {[%emt 0:00:33]} Qxa6 {[%emt 0:00:05]} 21. Bh6 {[%emt 0:00:26]} Rfe8 {[%emt 0:00:16]} 22. Qg5 {[%emt 0:00:23]} Bc7 {[%emt 0:00:15]} 23. Qe3 {[%emt 0:03:25]} c4 {[%emt 0:09:02]} 24. a4 {[%emt 0:03:55]} cxb3 {[%emt 0:00:46]} 25. cxb3 {[%emt 0:00:12]} Rxd1 {[%emt 0:05:02]} 26. Rxd1 {[%emt 0:00:11]} Qe6 {[%emt 0:00:21]} 27. Qxa7 {[%emt 0:04:35]} Bb6 {[%emt 0:01:10]} 28. Qd7 {[%emt 0:00:45]} Qxd7 {[%emt 0:01:57]} 29. Rxd7 {[%emt 0:02:01]} Rd8 {[%emt 0:00:07]} 30. Rxd8+ {[%emt 0:00:11]} Bxd8 {[%emt 0:00:01]} 31. b4 {[%emt 0:01:37]} f5 {[%emt 0:00:08]} 32. Be3 {[%emt 0:00:12]} Kf7 {[%emt 0:00:28]} 33. a5 {[%emt 0:00:17]} f4 {[%emt 0:01:04]} 34. Bb6 {[%emt 0:00:27]} Ke8 {[%emt 0:00:15]} 35. Bc5 {[%emt 0:01:43]} Kd7 {[%emt 0:00:12]} 36. a6 {[%emt 0:02:04]} Kc8 {[%emt 0:00:25]} 37. b5 {[%emt 0:00:31]} e4 {[%emt 0:04:37]} 38. Kf1 {[%emt 0:00:29]} g5 {[%emt 0:00:05]} 39. Ke2 {[%emt 0:00:22]} h5 {[%emt 0:00:12]} 40. b6 {[%emt 0:00:25]} h4 {[%emt 0:01:01]} 41. h3 {[%emt 0:30:29]} g4 {[%emt 0:34:42]} 42. hxg4 {[%emt 0:00:17]} f3+ {[%emt 0:01:23]} 43. Kf1 {[%emt 0:01:16]} 1-0

[Event "POR-ch Amateur 2018"]
[Site "Braga"]
[Date "2018.09.08"]
[Round "3"]
[White "Andrade, Ricardo Sarmento"]
[Black "Godinho Marques, Pedro"]
[Result "1-0"]
[ECO "D00"]
[WhiteElo "1744"]
[BlackElo "1853"]
[PlyCount "87"]
[EventDate "2018.09.02"]
[EventType "tourn"]
[EventCountry "POR"]
[TimeControl "40/5400+30:1800+30"]
[WhiteClock "0:00:47"]
[BlackClock "0:18:55"]

1. d4 {[%emt 0:00:00]} d5 {[%emt 0:01:58]} 2. Bf4 {[%emt 0:00:00]} Bf5 {[%emt 0:00:42]} 3. e3 {[%emt 0:00:00]} Nf6 {[%emt 0:01:13]} 4. c4 {[%emt 0:00:11]} c6 {[%emt 0:07:38]} 5. Qb3 {[%emt 0:00:58]} Qb6 {[%emt 0:01:09]} 6. c5 {[%emt 0:00:19]} Qxb3 7. axb3 {[%emt 0:00:10]} Nh5 {[%emt 0:08:49]} 8. Bc7 {[%emt 0:01:13]} g6 {[%emt 0:04:03]} 9. Nc3 {[%emt 0:02:13]} Nd7 {[%emt 0:01:07]} 10. h3 {[%emt 0:00:34]} Nhf6 {[%emt 0:02:12]} 11. Nf3 {[%emt 0:01:40]} h6 {[%emt 0:02:12]} 12. b4 {[%emt 0:00:55]} a6 {[%emt 0:06:42]} 13. Be2 {[%emt 0:04:24]} Bg7 {[%emt 0:00:11]} 14. O-O {[%emt 0:00:08]} O-O {[%emt 0:00:23]} 15. g4 {[%emt 0:01:42]} Be6 {[%emt 0:08:10]} 16. Nd2 {[%emt 0:08:54]} Rac8 {[%emt 0:05:49]} 17. Bg3 {[%emt 0:03:07]} Nh7 {[%emt 0:00:45]} 18. f3 {[%emt 0:02:38]} f5 {[%emt 0:01:31]} 19. Nb3 {[%emt 0:04:55]} Ra8 {[%emt 0:11:05]} 20. Na5 {[%emt 0:02:21]} Ra7 {[%emt 0:01:27]} 21. b5 {[%emt 0:10:30]} f4 {[%emt 0:04:44]} 22. b6 {[%emt 0:11:00]} Raa8 {[%emt 0:00:39]} 23. Bf2 {[%emt 0:03:32]} Ng5 {[%emt 0:03:20]} 24. Kg2 {[%emt 0:01:49]} fxe3 {[%emt 0:06:38]} 25. Bxe3 {[%emt 0:00:15]} Rab8 {[%emt 0:00:47]} 26. Bxa6 {[%emt 0:04:07]} bxa6 {[%emt 0:01:17]} 27. Nxc6 {[%emt 0:00:09]} Rbe8 {[%emt 0:06:39]} 28. Rxa6 {[%emt 0:00:27]} Nb8 {[%emt 0:01:02]} 29. Nxb8 {[%emt 0:00:17]} Rxb8 {[%emt 0:00:16]} 30. h4 {[%emt 0:08:31]} Bc8 {[%emt 0:02:37]} 31. Ra7 {[%emt 0:00:25]} Ne6 {[%emt 0:01:19]} 32. Nxd5 {[%emt 0:00:28]} Bb7 {[%emt 0:02:08]} 33. Nxe7+ {[%emt 0:00:35]} Kh7 {[%emt 0:02:04]} 34. d5 {[%emt 0:04:53]} Nf4+ {[%emt 0:01:43]} 35. Bxf4 {[%emt 0:01:55]} Rxf4 {[%emt 0:00:06]} 36. c6 {[%emt 0:02:25]} Bxc6 {[%emt 0:02:59]} 37. dxc6 {[%emt 0:00:14]} Rxb6 {[%emt 0:00:21]} 38. Nd5 {[%emt 0:02:33]} Rxb2+ {[%emt 0:00:08]} 39. Rf2 {[%emt 0:00:01]} Rxf2+ {[%emt 0:02:09]} 40. Kxf2 {[%emt 0:00:02]} Rf8 {[%emt 0:00:41]} 41. Rd7 {[%emt 0:31:22]} Kh8 {[%emt 0:31:04]} 42. Ne7 {[%emt 0:00:25]} Kh7 {[%emt 0:00:28]} 43. c7 {[%emt 0:00:38]} Bd4+ {[%emt 0:00:28]} 44. Rxd4 {[%emt 0:00:10]} 1-0

[Event "POR-ch Amateur 2018"]
[Site "Braga"]
[Date "2018.09.08"]
[Round "3"]
[White "Areal, Pedro"]
[Black "Andrade, Ricardo Sarmento"]
[Result "1/2-1/2"]
[ECO "A45"]
[WhiteElo "1732"]
[BlackElo "1744"]
[PlyCount "85"]
[EventDate "2018.09.02"]
[EventType "tourn"]
[EventCountry "POR"]
[TimeControl "40/5400+30:1800+30"]
[WhiteClock "0:06:49"]
[BlackClock "0:04:27"]

1. d4 {[%emt 0:00:00]} Nf6 {[%emt 0:03:19]} 2. Bg5 {[%emt 0:00:00]} c6 {[%emt 0:00:28]} 3. Bxf6 {[%emt 0:00:14]} gxf6 {[%emt 0:00:07]} 4. c3 {[%emt 0:00:28]} d5 {[%emt 0:00:53]} 5. g3 {[%emt 0:01:30]} Bf5 {[%emt 0:02:01]} 6. Nd2 {[%emt 0:00:30]} Qb6 {[%emt 0:01:16]} 7. Qb3 {[%emt 0:00:58]} Nd7 {[%emt 0:00:26]} 8. Bg2 {[%emt 0:00:27]} e5 {[%emt 0:04:05]} 9. e3 {[%emt 0:02:12]} Bg7 {[%emt 0:07:33]} 10. Ne2 {[%emt 0:05:52]} O-O {[%emt 0:10:08]} 11. O-O {[%emt 0:00:25]} Rfe8 {[%emt 0:01:20]} 12. Rfe1 {[%emt 0:01:45]} a5 {[%emt 0:04:03]} 13. a4 {[%emt 0:04:47]} Ra6 {[%emt 0:06:31]} 14. Ra3 {[%emt 0:02:24]} Bf8 {[%emt 0:05:36]} 15. Qxb6 {[%emt 0:04:45]} Rxb6 {[%emt 0:00:42]} 16. Rb3 {[%emt 0:01:49]} Rxb3 {[%emt 0:06:23]} 17. Nxb3 {[%emt 0:00:32]} b6 {[%emt 0:01:25]} 18. Nd2 {[%emt 0:01:20]} Bc2 {[%emt 0:00:58]} 19. b3 {[%emt 0:00:39]} Bd3 {[%emt 0:02:44]} 20. Bf1 {[%emt 0:07:27]} Bh6 {[%emt 0:13:53]} 21. Nc1 {[%emt 0:05:03]} Bxf1 22. Kxf1 {[%emt 0:01:15]} e4 {[%emt 0:04:36]} 23. Ne2 {[%emt 0:06:26]} Kf8 {[%emt 0:00:10]} 24. c4 {[%emt 0:10:58]} f5 {[%emt 0:03:28]} 25. cxd5 {[%emt 0:07:25]} cxd5 {[%emt 0:00:01]} 26. Rc1 {[%emt 0:00:48]} Re6 {[%emt 0:01:35]} 27. Rc7 {[%emt 0:07:43]} Ke7 {[%emt 0:01:06]} 28. Nc3 {[%emt 0:00:38]} Kd8 {[%emt 0:01:29]} 29. Nb5 {[%emt 0:02:06]} Bf8 {[%emt 0:00:59]} 30. Rc1 {[%emt 0:02:39]} Bb4 {[%emt 0:05:29]} 31. Nb1 {[%emt 0:01:51]} Nb8 {[%emt 0:02:12]} 32. Nc7 {[%emt 0:08:47]} Rd6 {[%emt 0:00:28]} 33. Ke2 {[%emt 0:01:26]} Kd7 {[%emt 0:00:47]} 34. Kd1 {[%emt 0:02:13]} Nc6 {[%emt 0:04:04]} 35. Nb5 {[%emt 0:01:27]} Rh6 {[%emt 0:00:28]} 36. h4 {[%emt 0:00:20]} Rg6 {[%emt 0:00:44]} 37. N1c3 {[%emt 0:00:30]} Bxc3 {[%emt 0:00:20]} 38. Rxc3 {[%emt 0:00:32]} h5 {[%emt 0:00:17]} 39. Rc1 {[%emt 0:01:04]} Rg8 {[%emt 0:00:56]} 40. Nc3 {[%emt 0:02:42]} Nb4 {[%emt 0:00:50]} 41. Nb5 {[%emt 0:32:19]} Nc6 {[%emt 0:30:15]} 42. Nc3 {[%emt 0:00:36]} Nb4 {[%emt 0:00:06]} 43. Nb5 {[%emt 0:00:11]} 1/2-1/2

[Event "POR-ch Amateur 2018"]
[Site "Braga"]
[Date "2018.09.08"]
[Round "3"]
[White "Brandao, Bruno Lopes"]
[Black "Machado, Tiago Candido Leita"]
[Result "1-0"]
[ECO "D02"]
[WhiteElo "1711"]
[BlackElo "1473"]
[PlyCount "72"]
[EventDate "2018.09.02"]
[EventType "tourn"]
[EventCountry "POR"]
[TimeControl "40/5400+30:1800+30"]
[WhiteClock "0:37:34"]
[BlackClock "1:10:15"]

1. d4 {[%emt 0:00:00]} d5 {[%emt 0:00:00]} 2. Nf3 {[%emt 0:00:00]} Nf6 {[%emt 0:00:00]} 3. Bf4 {[%emt 0:00:00]} Bf5 {[%emt 0:00:09]} 4. e3 {[%emt 0:00:00]} e6 {[%emt 0:00:21]} 5. c3 {[%emt 0:00:06]} Bd6 {[%emt 0:01:11]} 6. Bg3 {[%emt 0:00:02]} h6 {[%emt 0:02:23]} 7. Bd3 {[%emt 0:00:04]} Bxd3 {[%emt 0:00:30]} 8. Qxd3 {[%emt 0:00:06]} O-O {[%emt 0:01:58]} 9. Nbd2 {[%emt 0:00:04]} Nbd7 {[%emt 0:02:09]} 10. Ne5 {[%emt 0:00:57]} Bxe5 {[%emt 0:05:27]} 11. dxe5 {[%emt 0:00:12]} Nc5 {[%emt 0:02:08]} 12. Qd4 {[%emt 0:06:36]} Nfe4 {[%emt 0:00:26]} 13. Nxe4 {[%emt 0:00:09]} Nxe4 {[%emt 0:00:39]} 14. f3 {[%emt 0:00:01]} c5 {[%emt 0:02:37]} 15. Qd1 {[%emt 0:01:56]} Nxg3 {[%emt 0:00:32]} 16. hxg3 {[%emt 0:00:04]} Qg5 {[%emt 0:00:52]} 17. Kf2 {[%emt 0:00:51]} Qxe5 {[%emt 0:00:37]} 18. f4 {[%emt 0:00:03]} Qe4 {[%emt 0:01:57]} 19. Qe2 {[%emt 0:00:43]} Rfd8 {[%emt 0:02:14]} 20. Rad1 {[%emt 0:00:01]} Rd7 {[%emt 0:01:25]} 21. Rh5 {[%emt 0:01:47]} f6 {[%emt 0:07:51]} 22. Qg4 {[%emt 0:03:15]} Kf7 {[%emt 0:03:10]} 23. Rh4 {[%emt 0:01:03]} Rad8 {[%emt 0:03:13]} 24. Qh5+ {[%emt 0:01:03]} Kf8 {[%emt 0:02:14]} 25. Rd2 {[%emt 0:00:42]} b6 {[%emt 0:00:24]} 26. Qg4 {[%emt 0:06:28]} Rd6 {[%emt 0:06:16]} 27. Qh3 {[%emt 0:00:56]} d4 {[%emt 0:02:51]} 28. exd4 {[%emt 0:00:21]} cxd4 {[%emt 0:00:44]} 29. Re2 {[%emt 0:00:01]} Qd5 {[%emt 0:02:44]} 30. Rxh6 {[%emt 0:00:55]} gxh6 {[%emt 0:05:49]} 31. Qxh6+ {[%emt 0:00:03]} Ke8 {[%emt 0:00:48]} 32. Qxf6 {[%emt 0:01:11]} d3 {[%emt 0:01:27]} 33. Re5 {[%emt 0:00:43]} Qc6 {[%emt 0:03:43]} 34. Rg5 {[%emt 0:00:37]} Kd7 {[%emt 0:00:30]} 35. Rg7+ {[%emt 0:05:26]} Kc8 {[%emt 0:00:19]} 36. f5 {[%emt 0:01:19]} Qc5+ {[%emt 0:00:48]} 1-0

[Event "POR-ch Amateur 2018"]
[Site "Braga"]
[Date "2018.09.09"]
[Round "3"]
[White "Brandao, Bruno Lopes"]
[Black "Fernandes, Tiago Joao Carneiro"]
[Result "1-0"]
[ECO "A05"]
[WhiteElo "1711"]
[BlackElo "1232"]
[PlyCount "103"]
[EventDate "2018.09.02"]
[EventType "tourn"]
[EventCountry "POR"]
[TimeControl "40/5400+30:1800+30"]

1. Nf3 Nf6 2. g3 Nc6 3. Bg2 d5 4. O-O e5 5. d3 Bc5 6. Nbd2 h6 7. e4 O-O 8. c3 Re8 9. h3 Qd6 10. Re1 Be6 11. Qe2 Nd7 12. Nf1 f5 13. exf5 Bxf5 14. Nh4 Bh7 15. Be3 a5 16. Bxc5 Nxc5 17. Ne3 e4 18. d4 Nd3 19. Red1 Rf8 20. Rf1 Rae8 21. g4 Ne7 22. Bh1 Rf7 23. Nhg2 Ref8 24. Ne1 Rxf2 25. Rxf2 Rxf2 26. Qxf2 Nxf2 27. Kxf2 c5 28. Bg2 cxd4 29. cxd4 Qb6 30. N1c2 g5 31. b3 Kg7 32. Rd1 Bg8 33. Rb1 Nc6 34. Rd1 Qa7 35. Bf1 Kf6 36. Nf5 Qb8 37. Nce3 Qf4+ 38. Ke1 Ne7 39. Rd2 Nxf5 40. Nxf5 e3 41. Re2 Be6 42. Nxe3 Qxd4 43. Nd1 Qb4+ 44. Kf2 Qf4+ 45. Kg2 Qd6 46. Nf2 Bd7 47. Rd2 Qc6 48. Rd3 d4+ 49. Kg1 Qd6 50. Ne4+ Ke6 51. Nxd6 Kxd6 52. Rxd4+ 1-0

[Event "POR-ch Amateur 2018"]
[Site "Braga"]
[Date "2018.09.08"]
[Round "3"]
[White "Santos, Jose Miguel Sereno"]
[Black "Areal, Pedro"]
[Result "1/2-1/2"]
[ECO "B11"]
[WhiteElo "1706"]
[BlackElo "1732"]
[PlyCount "96"]
[EventDate "2018.09.02"]
[EventType "tourn"]
[EventCountry "POR"]
[TimeControl "40/5400+30:1800+30"]

1. e4 c6 2. Nc3 d5 3. Nf3 Bg4 4. h3 Bxf3 5. Qxf3 e6 6. Be2 Nf6 7. O-O Nbd7 8. d4 dxe4 9. Nxe4 Nxe4 10. Qxe4 Nf6 11. Qd3 Be7 12. c4 O-O 13. Bf4 Qd7 14. Rfd1 Rfd8 15. Bf3 Rac8 16. Be5 Ne8 17. Qe2 Bf6 18. Rac1 Qe7 19. a3 Nd6 20. Bxf6 Qxf6 21. d5 exd5 22. cxd5 cxd5 23. Rxc8 Rxc8 24. Bxd5 h6 25. Bb3 Re8 26. Qc2 Re7 27. Bd5 Kf8 28. Bf3 b6 29. Qc6 Ne8 30. Qb5 Qe5 31. Qb4 Kg8 32. Kf1 Qe6 33. a4 Qe5 34. b3 g6 35. Re1 Qxe1+ 36. Qxe1 Rxe1+ 37. Kxe1 Kf8 38. Kd2 Ke7 39. Kc3 Ke6 40. Kd4 Nc7 41. Be2 f6 42. Bc4+ Ke7 43. b4 Kf8 44. Ke4 Ke7 45. Kd4 Kf8 46. Ke4 Ke7 47. Kd4 Kf8 48. Ke4 Ke7 1/2-1/2

[Event "POR-ch Amateur 2018"]
[Site "Braga"]
[Date "2018.09.08"]
[Round "3"]
[White "Santos, Jose Miguel Sereno"]
[Black "Leao, Tiago Miguel Da Sil"]
[Result "0-1"]
[ECO "B40"]
[WhiteElo "1706"]
[BlackElo "2084"]
[PlyCount "74"]
[EventDate "2018.09.02"]
[EventType "tourn"]
[EventCountry "POR"]
[TimeControl "40/5400+30:1800+30"]

1. e4 c5 2. Nf3 e6 3. c3 Nf6 4. e5 Nd5 5. d4 cxd4 6. cxd4 d6 7. Bb5+ Bd7 8. Bxd7+ Nxd7 9. O-O dxe5 10. dxe5 Qc7 11. Re1 Be7 12. Bd2 O-O 13. Nc3 Nxc3 14. Bxc3 Rfd8 15. Qe2 Rac8 16. Rac1 Qb8 17. Red1 Nf8 18. Qe4 b5 19. a3 Rxd1+ 20. Rxd1 Bxa3 21. Ra1 Bc5 22. g3 h6 23. Nd4 b4 24. Bd2 Qb6 25. Be3 a5 26. Nb3 Bxe3 27. fxe3 Nd7 28. Nxa5 Qc5 29. Nb3 Qxe5 30. Qd4 Qxd4 31. Nxd4 Nb6 32. Ra6 Nc4 33. Nc6 Kh7 34. Nxb4 Nxb2 35. Nc6 Rc7 36. Kf2 Nd3+ 37. Kf3 Rxc6 0-1

[Event "POR-ch Amateur 2018"]
[Site "Braga"]
[Date "2018.09.09"]
[Round "3"]
[White "Ribeiro, Rodrigo"]
[Black "Areal, Pedro"]
[Result "0-1"]
[ECO "A50"]
[WhiteElo "1696"]
[BlackElo "1732"]
[PlyCount "74"]
[EventDate "2018.09.02"]
[EventType "tourn"]
[EventCountry "POR"]
[TimeControl "40/5400+30:1800+30"]
[WhiteClock "0:22:07"]
[BlackClock "1:18:11"]

1. d4 {[%emt 0:00:00]} Nf6 {[%emt 0:00:00]} 2. c4 {[%emt 0:00:00]} b6 {[%emt 0:00:00]} 3. Nc3 {[%emt 0:00:00]} Bb7 {[%emt 0:00:00]} 4. Bf4 {[%emt 0:00:11]} e6 {[%emt 0:03:29]} 5. e3 {[%emt 0:01:34]} Bb4 {[%emt 0:08:09]} 6. Nf3 {[%emt 0:00:41]} Nc6 {[%emt 0:02:52]} 7. Bd3 {[%emt 0:00:27]} Ne7 {[%emt 0:01:48]} 8. O-O {[%emt 0:00:50]} Bxc3 {[%emt 0:00:22]} 9. bxc3 {[%emt 0:00:08]} Ng6 {[%emt 0:00:09]} 10. Bg3 {[%emt 0:00:35]} Ne4 {[%emt 0:04:09]} 11. Ne5 {[%emt 0:02:41]} Nxg3 {[%emt 0:03:22]} 12. Nxg6 {[%emt 0:00:28]} hxg6 {[%emt 0:06:32]} 13. hxg3 {[%emt 0:00:48]} Qg5 {[%emt 0:02:25]} 14. Re1 {[%emt 0:01:46]} Qh6 {[%emt 0:06:12]} 15. f3 {[%emt 0:00:22]} Qg5 {[%emt 0:06:26]} 16. Kf2 {[%emt 0:00:48]} Qa5 {[%emt 0:03:51]} 17. Qc2 {[%emt 0:00:29]} O-O-O {[%emt 0:02:48]} 18. Rh1 {[%emt 0:00:01]} Rh6 {[%emt 0:03:06]} 19. Rh4 {[%emt 0:01:22]} Rdh8 {[%emt 0:01:28]} 20. Rah1 {[%emt 0:00:10]} Rxh4 {[%emt 0:05:47]} 21. Rxh4 {[%emt 0:00:40]} Rxh4 {[%emt 0:00:28]} 22. gxh4 {[%emt 0:00:12]} Qh5 {[%emt 0:00:48]} 23. e4 {[%emt 0:00:56]} Qxh4+ {[%emt 0:00:21]} 24. Kf1 {[%emt 0:00:07]} Qe7 {[%emt 0:03:24]} 25. d5 {[%emt 0:00:56]} Kb8 {[%emt 0:04:45]} 26. Qb2 {[%emt 0:01:27]} Qc5 {[%emt 0:00:55]} 27. Qd2 {[%emt 0:00:53]} f6 {[%emt 0:03:18]} 28. Qc1 {[%emt 0:01:12]} Ba6 {[%emt 0:00:39]} 29. Qd2 {[%emt 0:02:51]} Bxc4 {[%emt 0:00:55]} 30. dxe6 {[%emt 0:00:24]} dxe6 {[%emt 0:01:53]} 31. Bxc4 {[%emt 0:00:22]} Qxc4+ {[%emt 0:00:07]} 32. Kg1 {[%emt 0:00:08]} Qc5+ {[%emt 0:00:33]} 33. Kf1 {[%emt 0:00:15]} Qd6 {[%emt 0:02:01]} 34. Qb2 {[%emt 0:00:22]} g5 {[%emt 0:01:01]} 35. Qb3 {[%emt 0:01:37]} g4 {[%emt 0:00:53]} 36. a4 {[%emt 0:00:45]} g3 {[%emt 0:00:57]} 37. Qb4 {[%emt 0:03:51]} Qd1# 0-1

[Event "POR-ch Amateur 2018"]
[Site "Braga"]
[Date "2018.09.08"]
[Round "3"]
[White "Ribeiro, Rodrigo"]
[Black "Demyanchuk, Sergey"]
[Result "1/2-1/2"]
[ECO "D37"]
[WhiteElo "1696"]
[BlackElo "1818"]
[PlyCount "159"]
[EventDate "2018.09.02"]
[EventType "tourn"]
[EventCountry "POR"]
[TimeControl "40/5400+30:1800+30"]
[WhiteClock "0:14:27"]
[BlackClock "0:36:08"]

1. d4 {[%emt 0:00:00]} d5 {[%emt 0:00:00]} 2. c4 {[%emt 0:00:00]} e6 {[%emt 0:00:00]} 3. Nc3 {[%emt 0:00:04]} Nf6 {[%emt 0:00:00]} 4. Nf3 {[%emt 0:00:11]} Be7 {[%emt 0:00:02]} 5. Bf4 {[%emt 0:00:19]} O-O {[%emt 0:00:34]} 6. e3 {[%emt 0:00:07]} b6 {[%emt 0:00:26]} 7. Be2 {[%emt 0:00:16]} dxc4 {[%emt 0:00:23]} 8. Bxc4 {[%emt 0:00:17]} Bb7 {[%emt 0:00:22]} 9. O-O {[%emt 0:00:09]} c5 {[%emt 0:01:06]} 10. Be2 {[%emt 0:02:22]} Nc6 {[%emt 0:00:32]} 11. Nb5 {[%emt 0:02:21]} a6 {[%emt 0:03:15]} 12. Nc3 {[%emt 0:01:52]} cxd4 {[%emt 0:00:28]} 13. Nxd4 {[%emt 0:00:22]} Nxd4 {[%emt 0:00:14]} 14. Qxd4 {[%emt 0:00:31]} Qxd4 {[%emt 0:00:16]} 15. exd4 {[%emt 0:01:47]} Rfd8 {[%emt 0:00:26]} 16. Bc7 {[%emt 0:00:53]} Rxd4 {[%emt 0:00:31]} 17. Bxb6 {[%emt 0:02:15]} Rd2 {[%emt 0:00:17]} 18. Rab1 {[%emt 0:04:30]} Rc8 {[%emt 0:01:30]} 19. Be3 {[%emt 0:01:03]} Rdd8 {[%emt 0:00:58]} 20. Rbc1 {[%emt 0:03:28]} Bc5 {[%emt 0:02:26]} 21. Bxc5 {[%emt 0:04:27]} Rxc5 {[%emt 0:00:12]} 22. Rfd1 {[%emt 0:01:14]} Rxd1+ {[%emt 0:00:49]} 23. Rxd1 {[%emt 0:01:15]} Kf8 {[%emt 0:00:59]} 24. f3 {[%emt 0:01:57]} Ke7 {[%emt 0:00:36]} 25. Kf2 {[%emt 0:00:18]} a5 {[%emt 0:00:32]} 26. Rd4 {[%emt 0:04:14]} Nd5 {[%emt 0:00:42]} 27. Nxd5+ {[%emt 0:03:23]} Bxd5 {[%emt 0:00:12]} 28. b3 {[%emt 0:00:54]} Rc2 {[%emt 0:00:22]} 29. Ra4 {[%emt 0:00:16]} Rc5 {[%emt 0:01:25]} 30. Ke3 {[%emt 0:00:15]} Kd6 {[%emt 0:01:07]} 31. Rd4 {[%emt 0:02:23]} e5 {[%emt 0:00:46]} 32. Rd2 {[%emt 0:00:25]} Ke6 {[%emt 0:01:19]} 33. Bd3 {[%emt 0:00:45]} h6 {[%emt 0:01:27]} 34. Rc2 {[%emt 0:01:23]} Kd6 {[%emt 0:00:17]} 35. Kd2 {[%emt 0:01:18]} g5 {[%emt 0:01:39]} 36. h3 {[%emt 0:01:09]} Be6 {[%emt 0:04:05]} 37. Rxc5 {[%emt 0:01:10]} Kxc5 {[%emt 0:00:09]} 38. Kc3 {[%emt 0:03:39]} Bd7 {[%emt 0:09:01]} 39. a3 {[%emt 0:01:55]} f5 {[%emt 0:00:49]} 40. b4+ {[%emt 0:00:15]} axb4+ {[%emt 0:01:59]} 41. axb4+ {[%emt 0:30:06]} Kd5 {[%emt 0:30:17]} 42. Bc4+ {[%emt 0:01:10]} Kd6 {[%emt 0:00:16]} 43. Bf7 {[%emt 0:01:20]} Bc6 {[%emt 0:00:51]} 44. Bg6 {[%emt 0:01:37]} Ke6 {[%emt 0:00:24]} 45. Kc4 {[%emt 0:01:11]} e4 {[%emt 0:02:31]} 46. fxe4 {[%emt 0:00:38]} Bxe4 {[%emt 0:00:07]} 47. g4 {[%emt 0:00:14]} Bd5+ {[%emt 0:00:07]} 48. Kd4 {[%emt 0:01:05]} f4 {[%emt 0:00:18]} 49. Be4 {[%emt 0:01:39]} Bxe4 50. Kxe4 {[%emt 0:00:07]} Kd6 {[%emt 0:00:51]} 51. Kd4 {[%emt 0:00:05]} Kc6 {[%emt 0:00:08]} 52. Kc4 {[%emt 0:00:51]} Kb6 {[%emt 0:00:07]} 53. b5 {[%emt 0:00:28]} Kb7 {[%emt 0:02:22]} 54. Kd4 {[%emt 0:00:16]} Kc7 {[%emt 0:00:09]} 55. Kd3 {[%emt 0:00:32]} Kb6 {[%emt 0:01:45]} 56. Kc4 {[%emt 0:00:06]} Ka5 {[%emt 0:00:53]} 57. Kc5 {[%emt 0:00:06]} f3 {[%emt 0:00:18]} 58. b6 {[%emt 0:00:03]} f2 {[%emt 0:00:06]} 59. b7 {[%emt 0:00:04]} f1=Q {[%emt 0:00:08]} 60. b8=Q {[%emt 0:00:08]} Qf2+ {[%emt 0:01:15]} 61. Kd5 {[%emt 0:02:10]} Qf3+ {[%emt 0:01:01]} 62. Kd4 {[%emt 0:00:35]} Qxh3 {[%emt 0:10:34]} 63. Qa7+ {[%emt 0:01:12]} Kb4 {[%emt 0:00:25]} 64. Qb6+ {[%emt 0:02:12]} Ka3 {[%emt 0:00:10]} 65. Qc5+ {[%emt 0:05:26]} Kb2 {[%emt 0:00:39]} 66. Qb5+ {[%emt 0:00:57]} Kc1 {[%emt 0:01:10]} 67. Qe2 {[%emt 0:05:28]} Qh4 {[%emt 0:21:30]} 68. Ke5 {[%emt 0:00:31]} h5 {[%emt 0:05:10]} 69. Kf5 {[%emt 0:01:17]} Qg3 {[%emt 0:01:54]} 70. Kxg5 {[%emt 0:00:27]} h4 {[%emt 0:01:02]} 71. Qc4+ {[%emt 0:03:13]} Kd2 {[%emt 0:00:36]} 72. Qa2+ {[%emt 0:00:46]} Ke3 {[%emt 0:00:32]} 73. Qb3+ {[%emt 0:00:25]} Kf2 {[%emt 0:00:10]} 74. Qc2+ {[%emt 0:00:29]} Kf1 {[%emt 0:09:14]} 75. Qd1+ {[%emt 0:00:13]} Kg2 {[%emt 0:00:44]} 76. Qe2+ {[%emt 0:00:08]} Kg1 {[%emt 0:03:05]} 77. Qd1+ {[%emt 0:00:14]} Kh2 {[%emt 0:00:24]} 78. Qe2+ {[%emt 0:00:05]} Kh3 {[%emt 0:01:25]} 79. Qf1+ {[%emt 0:00:53]} Kh2 {[%emt 0:00:12]} 80. Qe2+ {[%emt 0:00:03]} 1/2-1/2

[Event "POR-ch Amateur 2018"]
[Site "Braga"]
[Date "2018.09.09"]
[Round "3"]
[White "De Sousa Silva, Lucas Jose"]
[Black "Guimaraes, Henrique"]
[Result "0-1"]
[ECO "C52"]
[WhiteElo "1656"]
[BlackElo "1135"]
[PlyCount "130"]
[EventDate "2018.09.02"]
[EventType "tourn"]
[EventCountry "POR"]
[TimeControl "40/5400+30:1800+30"]

1. e4 e5 2. Nf3 Nc6 3. Bc4 Bc5 4. b4 Bxb4 5. c3 Ba5 6. d4 d6 7. O-O Bb6 8. Qb3 Qd7 9. Bb5 a6 10. Ba4 Ba7 11. d5 b5 12. dxc6 Qxc6 13. Bxb5 Qxb5 14. Qxb5+ axb5 15. a4 Bb6 16. Bb2 Rxa4 17. Rxa4 bxa4 18. c4 Nf6 19. Nc3 Bd7 20. Ra1 O-O 21. Kf1 Ra8 22. Ke2 Bc6 23. Nd2 Bc5 24. f3 Bd4 25. Kd3 Nh5 26. g4 Nf4+ 27. Kc2 Kf8 28. Nd5 Bxb2 29. Kxb2 Bxd5 30. cxd5 Ke7 31. Kc3 Kd7 32. Kb4 Nd3+ 33. Kc3 Nc5 34. Nc4 g6 35. Nd2 Rb8 36. Ra3 Ke7 37. Kc4 Kf6 38. Kc3 Kg5 39. Kc4 f6 40. Re3 Rb2 41. Kc3 Ra2 42. Nc4 Rxh2 43. Kb4 Rh1 44. Kb5 Rb1+ 45. Kc6 Rb7 46. Na5 Ra7 47. Nc4 h5 48. Na3 h4 49. Nb5 Rb7 50. Nxc7 Rb3 51. Rxb3 axb3 52. Ne6+ Kh6 53. Nxc5 b2 54. Kxd6 b1=Q 55. Ke7 Qb4 56. Kd6 Qb6+ 57. Ke7 Qxc5+ 58. Kxf6 h3 59. Kxe5 h2 60. Ke6 h1=Q 61. d6 Qxf3 62. Ke7 Qxe4+ 63. Kf6 Qxd6+ 64. Kf7 Qd7+ 65. Kg8 Qg7# 0-1

[Event "POR-ch Amateur 2018"]
[Site "Braga"]
[Date "2018.09.08"]
[Round "3"]
[White "De Sousa Silva, Lucas Jose"]
[Black "Duarte, Francisco"]
[Result "0-1"]
[ECO "C42"]
[WhiteElo "1656"]
[BlackElo "1205"]
[PlyCount "46"]
[EventDate "2018.09.02"]
[EventType "tourn"]
[EventCountry "POR"]
[TimeControl "40/5400+30:1800+30"]

1. e4 e5 2. Nf3 Nf6 3. Nxe5 d6 4. Nf3 Nxe4 5. d3 Nf6 6. Nc3 Nc6 7. g3 Bg4 8. Bg2 Be7 9. O-O h6 10. Re1 O-O 11. Bf4 d5 12. Qd2 Bxf3 13. Bxf3 Nd4 14. Bg2 Bd6 15. Bxd5 Nxd5 16. Kg2 Bxf4 17. gxf4 Nxc3 18. bxc3 Qd5+ 19. Re4 f5 20. cxd4 fxe4 21. Kg3 Qxd4 22. Rg1 exd3 23. cxd3 Rad8 0-1